[Event "RUS-ch Blitz Women 2018"]
[Site "Sochi"]
[Date "2018.10.07"]
[Round "15"]
[White "Sukhareva, Evgeniya"]
[Black "Potapova, Margarita"]
[Result "0-1"]
[ECO "A58"]
[WhiteElo "2125"]
[BlackElo "2099"]
[Annotator "NA"]
[PlyCount "140"]
[EventDate "2018.10.07"]
[EventType "swiss"]
[EventCountry "RUS"]
[SourceTitle "playchess.com"]
[Source "ChessBase"]
[SourceQuality "1"]
[TimeControl "180+2"]

1. d4 {[%emt 0:00:00]} Nf6 {[%emt 0:00:00]} 2. c4 {[%emt 0:00:00]} c5 {[%emt 0:00:00]} 3. d5 {[%emt 0:00:01]} b5 {[%emt 0:00:00]} 4. cxb5 a6 5. bxa6 {[%emt 0:00:02]} g6 {[%emt 0:00:04]} 6. Nc3 {[%emt 0:00:01]} Bg7 {[%emt 0:00:03]} 7. e4 {[%emt 0:00:01]} Qa5 {[%emt 0:00:01]} 8. Bd2 {[%emt 0:00:08]} Bxa6 {[%emt 0:00:03]} 9. Bxa6 {[%emt 0:00:05]} Qxa6 {[%emt 0:00:04]} 10. Nge2 {[%emt 0:00:01]} d6 {[%emt 0:00:02]} 11. O-O {[%emt 0:00:02]} O-O {[%emt 0:00:03]} 12. Qc2 {[%emt 0:00:01]} Nbd7 {[%emt 0:00:10]} 13. a4 {[%emt 0:00:25]} Rfb8 {[%emt 0:00:24]} 14. Ra3 {[%emt 0:00:35]} Qb6 {[%emt 0:00:28]} 15. Nb5 {[%emt 0:00:09]} Ne8 {[%emt 0:00:03]} 16. Nec3 {[%emt 0:00:08]} Ne5 {[%emt 0:00:04]} 17. Bg5 {[%emt 0:00:10]} f6 {[%emt 0:00:05]} 18. Bf4 {[%emt 0:00:05]} Nc4 {[%emt 0:00:03]} 19. Raa1 {[%emt 0:00:03]} Ne5 {[%emt 0:00:15]} 20. Be3 {[%emt 0:00:05]} Nc4 {[%emt 0:00:02]} 21. Bf4 {[%emt 0:00:01]} Ne5 {[%emt 0:00:01]} 22. h3 {[%emt 0:00:00]} Nc7 {[%emt 0:00:02]} 23. Qe2 {[%emt 0:00:07]} Na6 {[%emt 0:00:02]} 24. Rad1 {[%emt 0:00:33]} Nb4 {[%emt 0:00:01]} 25. Bc1 {[%emt 0:00:01]} c4 {[%emt 0:00:06]} 26. Be3 {[%emt 0:00:02]} Qd8 {[%emt 0:00:03]} 27. Nd4 {[%emt 0:00:07]} Qe8 {[%emt 0:00:06]} 28. Ne6 {[%emt 0:00:02]} Nbd3 {[%emt 0:00:06]} 29. Nc7 {[%emt 0:00:04]} Rxb2 {[%emt 0:00:13]} 30. Nxe8 {[%emt 0:00:13]} Rxe2 {[%emt 0:00:03]} 31. Nxe2 {[%emt 0:00:03]} Rxe8 {[%emt 0:00:01]} 32. a5 {[%emt 0:00:08]} Ra8 {[%emt 0:00:01]} 33. Ra1 {[%emt 0:00:00]} f5 {[%emt 0:00:06]} 34. exf5 {[%emt 0:00:08]} gxf5 {[%emt 0:00:01]} 35. a6 {[%emt 0:00:04]} Nd7 {[%emt 0:00:06]} 36. Ra5 {[%emt 0:00:12]} N7c5 {[%emt 0:00:08]} 37. a7 {[%emt 0:00:01]} c3 {[%emt 0:00:10]} 38. Bd4 {[%emt 0:00:04]} c2 {[%emt 0:00:20]} 39. Bxg7 {[%emt 0:00:05]} Kxg7 {[%emt 0:00:01]} 40. Ra2 {[%emt 0:00:10]} Nb4 {[%emt 0:00:13]} 41. Ra5 {[%emt 0:00:06]} Nxd5 {[%emt 0:00:05]} 42. Ra2 {[%emt 0:00:04]} Nb4 {[%emt 0:00:01]} 43. Ra5 {[%emt 0:00:01]} Nc6 {[%emt 0:00:03]} 44. Raa1 {[%emt 0:00:01]} Nb3 {[%emt 0:00:11]} 45. Ra6 {[%emt 0:00:02]} Nxa7 {[%emt 0:00:04]} 46. Nc1 {[%emt 0:00:06]} Nc5 {[%emt 0:00:03]} 47. Ra2 {[%emt 0:00:01]} Ne4 {[%emt 0:00:13]} 48. f3 {[%emt 0:00:02]} Nc3 {[%emt 0:00:01]} 49. Rxc2 Nab5 50. Nd3 {[%emt 0:00:03]} Nd4 {[%emt 0:00:02]} 51. Rd2 {[%emt 0:00:03]} Ncb5 {[%emt 0:00:02]} 52. Nf4 {[%emt 0:00:01]} Kf7 {[%emt 0:00:02]} 53. Kh2 {[%emt 0:00:01]} e5 {[%emt 0:00:02]} 54. Nd3 {[%emt 0:00:01]} Nc3 {[%emt 0:00:02]} 55. Rc1 {[%emt 0:00:02]} Nd5 {[%emt 0:00:01]} 56. Nf2 {[%emt 0:00:02]} Ke6 {[%emt 0:00:03]} 57. Rb1 {[%emt 0:00:02]} Ra7 {[%emt 0:00:01]} 58. Rb8 {[%emt 0:00:01]} Ne3 {[%emt 0:00:04]} 59. Nd3 {[%emt 0:00:02]} Nf1+ {[%emt 0:00:01]} 60. Kg1 {[%emt 0:00:01]} Nxd2 {[%emt 0:00:01]} 61. Re8+ {[%emt 0:00:01]} Kf7 {[%emt 0:00:01]} 62. Rh8 {[%emt 0:00:02]} Kg7 {[%emt 0:00:01]} 63. Rd8 {[%emt 0:00:02]} Ra1+ {[%emt 0:00:03]} 64. Kh2 {[%emt 0:00:04]} Nf1+ {[%emt 0:00:02]} 65. Kg1 {[%emt 0:00:00]} Ne3+ {[%emt 0:00:01]} 66. Kh2 {[%emt 0:00:02]} Ra2 {[%emt 0:00:05]} 67. Rd7+ {[%emt 0:00:08]} Kg8 {[%emt 0:00:03]} 68. Rd8+ {[%emt 0:00:05]} Kf7 {[%emt 0:00:01]} 69. Rxd6 {[%emt 0:00:05]} Rxg2+ {[%emt 0:00:02]} 70. Kh1 {[%emt 0:00:02]} Nxf3 {[%emt 0:00:02]} 0-1

[Event "RUS-ch Blitz Women 2018"]
[Site "Sochi"]
[Date "2018.10.07"]
[Round "16"]
[White "Kashlinskaya, Alina"]
[Black "Vasilevich, Tatjana"]
[Result "1/2-1/2"]
[ECO "E47"]
[WhiteElo "2447"]
[BlackElo "2360"]
[Annotator "NA"]
[PlyCount "111"]
[EventDate "2018.10.07"]
[EventType "swiss"]
[EventCountry "RUS"]
[SourceTitle "playchess.com"]
[Source "ChessBase"]
[SourceQuality "1"]
[TimeControl "180+2"]

1. d4 {[%emt 0:00:00]} Nf6 {[%emt 0:00:00]} 2. c4 {[%emt 0:00:00]} e6 {[%emt 0:00:00]} 3. Nc3 {[%emt 0:00:00]} Bb4 {[%emt 0:00:00]} 4. e3 {[%emt 0:00:01]} O-O {[%emt 0:00:03]} 5. Bd3 {[%emt 0:00:00]} c5 {[%emt 0:00:02]} 6. Nf3 {[%emt 0:00:02]} d5 {[%emt 0:00:07]} 7. O-O {[%emt 0:00:02]} Bxc3 {[%emt 0:00:01]} 8. bxc3 {[%emt 0:00:01]} b6 {[%emt 0:00:08]} 9. cxd5 {[%emt 0:00:09]} exd5 {[%emt 0:00:01]} 10. Ne5 {[%emt 0:00:16]} Qc7 {[%emt 0:00:10]} 11. f4 {[%emt 0:00:06]} Nbd7 {[%emt 0:00:10]} 12. Bd2 {[%emt 0:00:01]} Bb7 {[%emt 0:00:02]} 13. Be1 {[%emt 0:00:02]} Ne4 {[%emt 0:00:08]} 14. Rc1 {[%emt 0:00:14]} f6 {[%emt 0:00:31]} 15. Nxd7 {[%emt 0:00:32]} Qxd7 {[%emt 0:00:01]} 16. Bxe4 {[%emt 0:00:01]} dxe4 {[%emt 0:00:01]} 17. c4 {[%emt 0:00:00]} cxd4 {[%emt 0:00:16]} 18. exd4 {[%emt 0:00:02]} Rfd8 {[%emt 0:00:05]} 19. d5 {[%emt 0:00:02]} b5 {[%emt 0:00:11]} 20. Ba5 {[%emt 0:00:06]} Rdc8 {[%emt 0:00:11]} 21. cxb5 {[%emt 0:00:07]} Qxb5 {[%emt 0:00:11]} 22. Qb3 {[%emt 0:00:48]} Qxb3 {[%emt 0:00:10]} 23. axb3 {[%emt 0:00:02]} Bxd5 {[%emt 0:00:01]} 24. b4 {[%emt 0:00:25]} Bc4 {[%emt 0:00:22]} 25. Rfe1 {[%emt 0:00:05]} Bd3 {[%emt 0:00:02]} 26. Kf2 {[%emt 0:00:03]} Kf7 {[%emt 0:00:07]} 27. Ke3 {[%emt 0:00:01]} Ke6 {[%emt 0:00:04]} 28. Rc5 {[%emt 0:00:08]} Rxc5 {[%emt 0:00:07]} 29. bxc5 Kd5 30. Rc1 {[%emt 0:00:02]} Rc8 {[%emt 0:00:08]} 31. Bb4 {[%emt 0:00:01]} Rb8 {[%emt 0:00:08]} 32. Bc3 {[%emt 0:00:29]} Rb5 {[%emt 0:00:15]} 33. Bd4 {[%emt 0:00:04]} Kc6 {[%emt 0:00:03]} 34. Ra1 {[%emt 0:00:05]} a5 {[%emt 0:00:07]} 35. Bc3 {[%emt 0:00:01]} Rxc5 {[%emt 0:00:05]} 36. Bxa5 {[%emt 0:00:01]} Rc2 {[%emt 0:00:04]} 37. Bd2 {[%emt 0:00:01]} Kb7 {[%emt 0:00:03]} 38. Rb1+ {[%emt 0:00:02]} Kc7 {[%emt 0:00:02]} 39. Rc1 {[%emt 0:00:00]} Rxc1 {[%emt 0:00:02]} 40. Bxc1 {[%emt 0:00:01]} Kd6 {[%emt 0:00:01]} 41. Ba3+ {[%emt 0:00:02]} Ke6 {[%emt 0:00:01]} 42. Bf8 {[%emt 0:00:01]} g6 {[%emt 0:00:01]} 43. g4 {[%emt 0:00:11]} h5 {[%emt 0:00:03]} 44. h3 {[%emt 0:00:02]} h4 {[%emt 0:00:03]} 45. Bb4 {[%emt 0:00:02]} g5 {[%emt 0:00:04]} 46. fxg5 {[%emt 0:00:04]} fxg5 {[%emt 0:00:00]} 47. Kf2 {[%emt 0:00:02]} Kf6 {[%emt 0:00:03]} 48. Bc3+ {[%emt 0:00:01]} Kg6 {[%emt 0:00:00]} 49. Bd2 {[%emt 0:00:01]} Bb5 {[%emt 0:00:03]} 50. Ke3 {[%emt 0:00:01]} Bc6 {[%emt 0:00:01]} 51. Kf2 {[%emt 0:00:01]} Bb7 {[%emt 0:00:02]} 52. Bc1 {[%emt 0:00:00]} Ba6 53. Bd2 {[%emt 0:00:01]} Bd3 {[%emt 0:00:04]} 54. Bc1 {[%emt 0:00:01]} Kf6 {[%emt 0:00:01]} 55. Bb2+ {[%emt 0:00:01]} Kg6 {[%emt 0:00:02]} 56. Bc1 {[%emt 0:00:00]} 1/2-1/2

[Event "RUS-ch Blitz Women 2018"]
[Site "Sochi"]
[Date "2018.10.07"]
[Round "16"]
[White "Shuvalova, Polina"]
[Black "Shaydullina, Sandugach"]
[Result "1-0"]
[ECO "B31"]
[WhiteElo "2421"]
[BlackElo "2033"]
[Annotator "RC"]
[PlyCount "61"]
[EventDate "2018.10.07"]
[EventType "swiss"]
[EventCountry "RUS"]
[SourceTitle "playchess.com"]
[Source "ChessBase"]
[SourceQuality "1"]
[TimeControl "180+2"]

1. e4 {[%emt 0:00:00]} c5 2. Nf3 Nc6 3. Bb5 g6 {[%emt 0:00:00]} 4. Bxc6 {[%emt 0:00:02]} dxc6 {[%emt 0:00:02]} 5. d3 {[%emt 0:00:02]} Bg7 {[%emt 0:00:01]} 6. h3 {[%emt 0:00:02]} e5 {[%emt 0:00:02]} 7. Nc3 {[%emt 0:00:04]} Nh6 {[%emt 0:00:02]} 8. Be3 {[%emt 0:00:02]} b6 {[%emt 0:00:00]} 9. Qd2 {[%emt 0:00:02]} Ng8 {[%emt 0:00:01]} 10. O-O {[%emt 0:00:03]} Ne7 {[%emt 0:00:02]} 11. a4 {[%emt 0:00:03]} a5 {[%emt 0:00:02]} 12. Nh2 {[%emt 0:00:06]} h5 {[%emt 0:00:02]} 13. Rae1 {[%emt 0:00:07]} Ba6 {[%emt 0:00:05]} 14. b3 {[%emt 0:00:02]} f6 {[%emt 0:00:11]} 15. Ne2 {[%emt 0:00:07]} g5 {[%emt 0:00:02]} 16. h4 {[%emt 0:00:17]} g4 {[%emt 0:00:03]} 17. f4 {[%emt 0:00:04]} Ng6 {[%emt 0:00:09]} 18. fxe5 {[%emt 0:00:12]} Nxe5 {[%emt 0:00:10]} 19. Ng3 {[%emt 0:00:08]} Bc8 {[%emt 0:00:03]} 20. Nf5 {[%emt 0:00:05]} Bxf5 {[%emt 0:00:02]} 21. Rxf5 {[%emt 0:00:02]} Qe7 {[%emt 0:00:11]} 22. Nf1 {[%emt 0:00:05]} Ng6 {[%emt 0:00:05]} 23. Qf2 {[%emt 0:00:11]} O-O-O {[%emt 0:00:09]} 24. Nd2 {[%emt 0:00:08]} Ne5 {[%emt 0:00:07]} 25. Nc4 {[%emt 0:00:05]} Nxc4 {[%emt 0:00:04]} 26. bxc4 {[%emt 0:00:01]} Kb7 {[%emt 0:00:07]} 27. Rb1 {[%emt 0:00:01]} Ka6 {[%emt 0:00:11]} 28. Rxb6+ {[%emt 0:00:05]} Ka7 {[%emt 0:00:03]} 29. Bxc5 {[%emt 0:00:02]} Qd7 {[%emt 0:00:07]} 30. Be3 {[%emt 0:00:07]} Rb8 {[%emt 0:00:06]} 31. Rxa5# {[%emt 0:00:01]} 1-0

[Event "RUS-ch Blitz Women 2018"]
[Site "Sochi"]
[Date "2018.10.07"]
[Round "16"]
[White "Bivol, Alina"]
[Black "Guseva, Marina"]
[Result "1-0"]
[ECO "A06"]
[WhiteElo "2403"]
[BlackElo "2292"]
[Annotator "NA"]
[PlyCount "89"]
[EventDate "2018.10.07"]
[EventType "swiss"]
[EventCountry "RUS"]
[SourceTitle "playchess.com"]
[Source "ChessBase"]
[SourceQuality "1"]
[TimeControl "180+2"]

1. Nf3 {[%emt 0:00:00]} d5 {[%emt 0:00:00]} 2. g3 {[%emt 0:00:00]} Bg4 {[%emt 0:00:00]} 3. Bg2 {[%emt 0:00:01]} Nd7 {[%emt 0:00:00]} 4. O-O {[%emt 0:00:03]} Ngf6 {[%emt 0:00:02]} 5. d3 {[%emt 0:00:01]} c6 {[%emt 0:00:00]} 6. h3 {[%emt 0:00:02]} Bh5 {[%emt 0:00:02]} 7. Qe1 {[%emt 0:00:01]} e5 {[%emt 0:00:05]} 8. e4 {[%emt 0:00:01]} dxe4 {[%emt 0:00:01]} 9. dxe4 {[%emt 0:00:01]} Bxf3 {[%emt 0:00:03]} 10. Bxf3 {[%emt 0:00:01]} Bc5 {[%emt 0:00:11]} 11. Bg2 {[%emt 0:00:02]} O-O {[%emt 0:00:02]} 12. Kh2 {[%emt 0:00:01]} Re8 {[%emt 0:00:01]} 13. a4 {[%emt 0:00:05]} Qc7 {[%emt 0:00:11]} 14. b4 {[%emt 0:00:03]} Bf8 {[%emt 0:00:06]} 15. Na3 {[%emt 0:00:17]} a5 {[%emt 0:00:04]} 16. b5 {[%emt 0:00:07]} Nc5 {[%emt 0:00:08]} 17. Bg5 {[%emt 0:00:14]} Nfd7 {[%emt 0:00:25]} 18. Nc4 {[%emt 0:00:01]} cxb5 {[%emt 0:00:04]} 19. axb5 {[%emt 0:00:02]} b6 {[%emt 0:00:07]} 20. Ne3 {[%emt 0:00:03]} Ne6 {[%emt 0:00:18]} 21. Nd5 {[%emt 0:00:20]} Qc4 {[%emt 0:00:23]} 22. Be3 {[%emt 0:00:06]} Bc5 {[%emt 0:00:08]} 23. Bxc5 {[%emt 0:00:04]} Qxc5 {[%emt 0:00:06]} 24. Qe3 {[%emt 0:00:26]} Qxe3 {[%emt 0:00:22]} 25. Nxe3 {[%emt 0:00:02]} Rec8 {[%emt 0:00:05]} 26. Rfd1 {[%emt 0:00:02]} Nd4 {[%emt 0:00:11]} 27. c4 {[%emt 0:00:24]} Kf8 {[%emt 0:00:10]} 28. f4 {[%emt 0:00:03]} f6 {[%emt 0:00:12]} 29. fxe5 {[%emt 0:00:05]} fxe5 {[%emt 0:00:01]} 30. Rf1+ {[%emt 0:00:05]} Kg8 {[%emt 0:00:13]} 31. h4 {[%emt 0:00:02]} Re8 {[%emt 0:00:04]} 32. Nd5 {[%emt 0:00:09]} Rab8 {[%emt 0:00:02]} 33. Rf2 {[%emt 0:00:19]} Nc5 {[%emt 0:00:02]} 34. g4 {[%emt 0:00:15]} Nce6 {[%emt 0:00:03]} 35. g5 {[%emt 0:00:04]} Red8 {[%emt 0:00:07]} 36. Bh3 {[%emt 0:00:03]} Nc5 {[%emt 0:00:02]} 37. Ne7+ {[%emt 0:00:06]} Kh8 {[%emt 0:00:01]} 38. Bg2 {[%emt 0:00:03]} Re8 {[%emt 0:00:03]} 39. Nd5 {[%emt 0:00:01]} Kg8 {[%emt 0:00:02]} 40. Raf1 {[%emt 0:00:05]} a4 {[%emt 0:00:02]} 41. h5 {[%emt 0:00:01]} a3 {[%emt 0:00:02]} 42. h6 {[%emt 0:00:03]} gxh6 {[%emt 0:00:03]} 43. gxh6 {[%emt 0:00:06]} Kh8 {[%emt 0:00:01]} 44. Rf7 {[%emt 0:00:03]} a2 {[%emt 0:00:02]} 45. Nf6 {[%emt 0:00:02]} 1-0

[Event "RUS-ch Blitz Women 2018"]
[Site "Sochi"]
[Date "2018.10.07"]
[Round "16"]
[White "Charochkina, Daria"]
[Black "Vinokur, Yuliya"]
[Result "1-0"]
[ECO "D34"]
[WhiteElo "2344"]
[BlackElo "2170"]
[Annotator "NA"]
[PlyCount "53"]
[EventDate "2018.10.07"]
[EventType "swiss"]
[EventCountry "RUS"]
[SourceTitle "playchess.com"]
[Source "ChessBase"]
[SourceQuality "1"]
[TimeControl "180+2"]

1. d4 {[%emt 0:00:00]} d5 {[%emt 0:00:03]} 2. c4 {[%emt 0:00:00]} e6 {[%emt 0:00:01]} 3. Nc3 {[%emt 0:00:01]} c5 {[%emt 0:00:01]} 4. cxd5 {[%emt 0:00:02]} exd5 {[%emt 0:00:01]} 5. Nf3 {[%emt 0:00:02]} Nc6 {[%emt 0:00:01]} 6. g3 {[%emt 0:00:01]} Nf6 {[%emt 0:00:02]} 7. Bg2 {[%emt 0:00:01]} Be7 {[%emt 0:00:01]} 8. O-O {[%emt 0:00:01]} O-O {[%emt 0:00:01]} 9. Bg5 {[%emt 0:00:01]} c4 {[%emt 0:00:01]} 10. Rc1 {[%emt 0:00:43]} h6 {[%emt 0:00:06]} 11. Bf4 {[%emt 0:00:12]} Be6 {[%emt 0:00:12]} 12. Re1 {[%emt 0:00:06]} Qa5 {[%emt 0:00:06]} 13. a3 {[%emt 0:00:16]} b5 {[%emt 0:00:28]} 14. Ne5 {[%emt 0:00:04]} Qb6 {[%emt 0:00:34]} 15. Nxc6 {[%emt 0:00:12]} Qxc6 {[%emt 0:00:01]} 16. Be5 {[%emt 0:00:01]} Ne4 {[%emt 0:00:34]} 17. Bxe4 {[%emt 0:00:12]} dxe4 {[%emt 0:00:43]} 18. d5 {[%emt 0:00:01]} Qc5 {[%emt 0:00:00]} 19. Bd4 {[%emt 0:00:01]} Qd6 {[%emt 0:00:03]} 20. dxe6 {[%emt 0:00:02]} Qxe6 {[%emt 0:00:01]} 21. Nxb5 {[%emt 0:00:12]} Rad8 {[%emt 0:00:03]} 22. e3 {[%emt 0:00:13]} Qh3 {[%emt 0:00:09]} 23. Nc3 {[%emt 0:00:11]} Bf6 {[%emt 0:00:10]} 24. Qe2 {[%emt 0:00:04]} Bxd4 {[%emt 0:00:02]} 25. exd4 {[%emt 0:00:01]} Rxd4 {[%emt 0:00:01]} 26. Nxe4 {[%emt 0:00:10]} Rfd8 {[%emt 0:00:07]} 27. Rcd1 {[%emt 0:00:09]} 1-0

[Event "RUS-ch Blitz Women 2018"]
[Site "Sochi"]
[Date "2018.10.07"]
[Round "16"]
[White "Dordzhieva, Dinara"]
[Black "Ambartsumova, Karina"]
[Result "0-1"]
[ECO "E62"]
[WhiteElo "2340"]
[BlackElo "2379"]
[Annotator "NA"]
[PlyCount "88"]
[EventDate "2018.10.07"]
[EventType "swiss"]
[EventCountry "RUS"]
[SourceTitle "playchess.com"]
[Source "ChessBase"]
[SourceQuality "1"]
[TimeControl "180+2"]

1. Nf3 {[%emt 0:00:00]} Nf6 {[%emt 0:00:00]} 2. c4 {[%emt 0:00:00]} g6 {[%emt 0:00:03]} 3. g3 {[%emt 0:00:00]} Bg7 {[%emt 0:00:01]} 4. Bg2 {[%emt 0:00:01]} O-O {[%emt 0:00:01]} 5. O-O {[%emt 0:00:01]} d6 {[%emt 0:00:00]} 6. d4 {[%emt 0:00:01]} Nc6 {[%emt 0:00:02]} 7. Nc3 {[%emt 0:00:01]} Bf5 {[%emt 0:00:01]} 8. d5 {[%emt 0:00:02]} Na5 {[%emt 0:00:02]} 9. Nd4 {[%emt 0:00:04]} Bd7 {[%emt 0:00:01]} 10. b3 {[%emt 0:00:17]} c5 {[%emt 0:00:02]} 11. Nc2 {[%emt 0:00:00]} a6 {[%emt 0:00:03]} 12. Qd3 {[%emt 0:00:36]} Rb8 {[%emt 0:00:04]} 13. Rb1 {[%emt 0:00:06]} b5 {[%emt 0:00:06]} 14. Bd2 {[%emt 0:00:01]} b4 {[%emt 0:00:35]} 15. Nd1 {[%emt 0:00:03]} e6 {[%emt 0:00:01]} 16. e4 {[%emt 0:00:03]} exd5 {[%emt 0:00:04]} 17. Nde3 {[%emt 0:00:42]} d4 {[%emt 0:00:43]} 18. Nd1 {[%emt 0:00:01]} Nc6 {[%emt 0:00:06]} 19. f4 {[%emt 0:00:01]} Re8 {[%emt 0:00:03]} 20. Nf2 {[%emt 0:00:01]} a5 {[%emt 0:00:02]} 21. Rbe1 {[%emt 0:00:03]} Qc7 {[%emt 0:00:22]} 22. h3 {[%emt 0:00:01]} Ra8 {[%emt 0:00:09]} 23. g4 {[%emt 0:00:01]} a4 {[%emt 0:00:05]} 24. g5 {[%emt 0:01:03]} Nh5 {[%emt 0:00:01]} 25. Ng4 {[%emt 0:00:08]} axb3 26. axb3 {[%emt 0:00:01]} Ra2 {[%emt 0:00:16]} 27. Nh6+ {[%emt 0:00:01]} Bxh6 {[%emt 0:00:20]} 28. gxh6 {[%emt 0:00:01]} Qd8 {[%emt 0:00:01]} 29. e5 {[%emt 0:00:08]} dxe5 {[%emt 0:00:04]} 30. f5 {[%emt 0:00:19]} e4 {[%emt 0:00:09]} 31. Rxe4 {[%emt 0:00:08]} Ne5 {[%emt 0:00:02]} 32. Rxe5 {[%emt 0:00:03]} Rxe5 {[%emt 0:00:01]} 33. fxg6 {[%emt 0:00:01]} fxg6 {[%emt 0:00:07]} 34. Ne1 {[%emt 0:00:01]} Re8 {[%emt 0:00:10]} 35. Bd5+ {[%emt 0:00:00]} Be6 {[%emt 0:00:01]} 36. Bg2 {[%emt 0:00:01]} Ra7 37. Nf3 Rf7 {[%emt 0:00:09]} 38. Bg5 {[%emt 0:00:02]} Qc7 {[%emt 0:00:02]} 39. Re1 {[%emt 0:00:01]} Bd7 {[%emt 0:00:03]} 40. Ra1 {[%emt 0:00:04]} Bf5 {[%emt 0:00:02]} 41. Qd2 {[%emt 0:00:01]} Ng3 {[%emt 0:00:02]} 42. Nh4 {[%emt 0:00:05]} Ne4 {[%emt 0:00:01]} 43. Bxe4 {[%emt 0:00:06]} Bxe4 {[%emt 0:00:02]} 44. Qf2 {[%emt 0:00:05]} Rxf2 {[%emt 0:00:02]} 0-1

[Event "RUS-ch Blitz Women 2018"]
[Site "Sochi"]
[Date "2018.10.07"]
[Round "16"]
[White "Potapova, Margarita"]
[Black "Sukhareva, Evgeniya"]
[Result "1-0"]
[ECO "A64"]
[WhiteElo "2284"]
[BlackElo "2125"]
[Annotator "NA"]
[PlyCount "106"]
[EventDate "2018.10.07"]
[EventType "swiss"]
[EventCountry "RUS"]
[SourceTitle "playchess.com"]
[Source "ChessBase"]
[SourceQuality "1"]
[TimeControl "180+2"]

1. d4 {[%emt 0:00:00]} Nf6 {[%emt 0:00:00]} 2. c4 {[%emt 0:00:00]} e6 {[%emt 0:00:00]} 3. Nf3 c5 4. d5 {[%emt 0:00:05]} exd5 {[%emt 0:00:01]} 5. cxd5 {[%emt 0:00:01]} d6 {[%emt 0:00:00]} 6. Nc3 {[%emt 0:00:01]} a6 {[%emt 0:00:00]} 7. a4 {[%emt 0:00:01]} g6 8. g3 Bg7 {[%emt 0:00:02]} 9. Bg2 {[%emt 0:00:01]} O-O {[%emt 0:00:01]} 10. O-O {[%emt 0:00:01]} Re8 {[%emt 0:00:14]} 11. Nd2 {[%emt 0:00:01]} Nbd7 {[%emt 0:00:03]} 12. h3 {[%emt 0:00:03]} Qe7 {[%emt 0:00:01]} 13. Nc4 {[%emt 0:00:08]} Rb8 {[%emt 0:00:01]} 14. a5 {[%emt 0:00:03]} b5 {[%emt 0:00:01]} 15. axb6 {[%emt 0:00:01]} Nxb6 {[%emt 0:00:01]} 16. Na5 {[%emt 0:00:02]} Bd7 {[%emt 0:00:02]} 17. Nc6 {[%emt 0:00:11]} Bxc6 {[%emt 0:00:14]} 18. dxc6 {[%emt 0:00:01]} d5 {[%emt 0:00:01]} 19. Rxa6 {[%emt 0:00:05]} d4 {[%emt 0:01:06]} 20. Nb5 {[%emt 0:00:06]} Nfd5 {[%emt 0:00:03]} 21. Ra7 {[%emt 0:00:18]} Qe6 {[%emt 0:00:18]} 22. Bf4 {[%emt 0:00:21]} Be5 {[%emt 0:00:09]} 23. Bxe5 {[%emt 0:00:02]} Qxe5 {[%emt 0:00:01]} 24. h4 {[%emt 0:00:16]} Rbc8 {[%emt 0:00:06]} 25. Bh3 {[%emt 0:00:05]} f5 {[%emt 0:00:06]} 26. Qc1 {[%emt 0:00:28]} Rxc6 {[%emt 0:00:14]} 27. Bg2 {[%emt 0:00:06]} Rcc8 {[%emt 0:00:20]} 28. h5 {[%emt 0:00:11]} f4 {[%emt 0:00:18]} 29. hxg6 {[%emt 0:00:08]} hxg6 {[%emt 0:00:00]} 30. Qb1 {[%emt 0:00:05]} Qf6 {[%emt 0:00:22]} 31. Bh3 {[%emt 0:00:04]} Rcd8 {[%emt 0:00:03]} 32. Qd3 {[%emt 0:00:27]} Qg5 {[%emt 0:00:04]} 33. Bg2 {[%emt 0:00:02]} Re7 34. Ra6 {[%emt 0:00:07]} fxg3 {[%emt 0:00:06]} 35. Qxg3 {[%emt 0:00:11]} Qxg3 {[%emt 0:00:03]} 36. fxg3 {[%emt 0:00:00]} Kg7 {[%emt 0:00:02]} 37. Bf3 {[%emt 0:00:05]} Re3 {[%emt 0:00:04]} 38. Rc1 {[%emt 0:00:05]} Rb3 {[%emt 0:00:01]} 39. Rxc5 {[%emt 0:00:03]} Rxb2 {[%emt 0:00:02]} 40. Nxd4 {[%emt 0:00:03]} Rb1+ {[%emt 0:00:02]} 41. Kf2 {[%emt 0:00:02]} Rb2 {[%emt 0:00:01]} 42. Ra7+ {[%emt 0:00:02]} Kh6 {[%emt 0:00:03]} 43. Ne6 {[%emt 0:00:05]} Rd6 {[%emt 0:00:02]} 44. Nf8 {[%emt 0:00:03]} Rf6 {[%emt 0:00:06]} 45. Rh7+ {[%emt 0:00:05]} Kg5 {[%emt 0:00:01]} 46. Nd7 {[%emt 0:00:05]} Rf5 {[%emt 0:00:02]} 47. g4 {[%emt 0:00:05]} Nxd7 {[%emt 0:00:02]} 48. Rxd7 {[%emt 0:00:03]} Rxf3+ {[%emt 0:00:02]} 49. Kxf3 {[%emt 0:00:02]} Rb3+ {[%emt 0:00:01]} 50. Kf2 {[%emt 0:00:01]} Kxg4 {[%emt 0:00:01]} 51. Rdxd5 {[%emt 0:00:01]} Rb2 {[%emt 0:00:03]} 52. Rg5+ {[%emt 0:00:02]} Kf4 {[%emt 0:00:02]} 53. Rxg6 {[%emt 0:00:01]} Ke4 1-0